[Event "*** SCC Grand Prix: Titled Tuesday Blitz"]
[Site "Chess.com"]
[Date "2020.06.23"]
[Round "4"]
[White "UKR_Master"]
[Black "LedakovAlexandr"]
[Result "0-1"]
[WhiteElo "2301"]
[BlackElo "2458"]
[TimeControl "180+1"]
[EndTime "10:38:41 PDT"]
[Termination "LedakovAlexandr won by resignation"]

1. e4 {[%clk 0:03:00.9]} 1... Nc6 {[%clk 0:02:56.7]} 2. d4 {[%clk 0:03:00.5]}
2... d6 {[%clk 0:02:56]} 3. h3 {[%clk 0:02:56.4]} 3... g6 {[%clk 0:02:52.6]} 4.
Nc3 {[%clk 0:02:54.4]} 4... Bg7 {[%clk 0:02:52.2]} 5. Be3 {[%clk 0:02:54.6]}
5... e5 {[%clk 0:02:52.5]} 6. Nge2 {[%clk 0:02:53.7]} 6... exd4 {[%clk
0:02:39.5]} 7. Nxd4 {[%clk 0:02:53.6]} 7... Nf6 {[%clk 0:02:38.5]} 8. g3 {[%clk
0:02:44.3]} 8... O-O {[%clk 0:02:26.9]} 9. Bg2 {[%clk 0:02:43.9]} 9... Bd7
{[%clk 0:02:27.4]} 10. O-O {[%clk 0:02:43.3]} 10... Nxd4 {[%clk 0:02:27.6]} 11.
Bxd4 {[%clk 0:02:39.4]} 11... Bc6 {[%clk 0:02:28.5]} 12. Re1 {[%clk 0:02:37.9]}
12... Re8 {[%clk 0:02:27.7]} 13. Qd2 {[%clk 0:02:35]} 13... a5 {[%clk
0:02:25.7]} 14. a4 {[%clk 0:02:33.7]} 14... Nd7 {[%clk 0:02:13.1]} 15. Bxg7
{[%clk 0:02:28.6]} 15... Kxg7 {[%clk 0:02:14]} 16. f4 {[%clk 0:02:20.4]} 16...
Qf6 {[%clk 0:02:09.3]} 17. Rad1 {[%clk 0:02:17.6]} 17... Nc5 {[%clk 0:02:07.8]}
18. Qd4 {[%clk 0:02:11.1]} 18... Qxd4+ {[%clk 0:02:03.3]} 19. Rxd4 {[%clk
0:02:12]} 19... h5 {[%clk 0:01:57.1]} 20. Kf2 {[%clk 0:02:10.1]} 20... h4 {[%clk
0:01:56.6]} 21. g4 {[%clk 0:01:56.6]} 21... Ne6 {[%clk 0:01:55.7]} 22. Ke3
{[%clk 0:01:37.5]} 22... Nxd4 {[%clk 0:01:54.3]} 23. Kxd4 {[%clk 0:01:38.4]}
23... Ra6 {[%clk 0:01:50]} 24. Bf1 {[%clk 0:01:35.1]} 24... Raa8 {[%clk
0:01:45.9]} 25. b3 {[%clk 0:01:34.3]} 25... f6 {[%clk 0:01:45.2]} 26. Bc4 {[%clk
0:01:31.6]} 26... g5 {[%clk 0:01:43.8]} 27. f5 {[%clk 0:01:30.2]} 27... Re5
{[%clk 0:01:39.5]} 28. Be6 {[%clk 0:01:28.4]} 28... Re8 {[%clk 0:01:38.5]} 29.
Nb1 {[%clk 0:01:26.4]} 29... d5 {[%clk 0:01:14.2]} 30. Nd2 {[%clk 0:01:12.8]}
30... dxe4 {[%clk 0:00:53.7]} 31. Nc4 {[%clk 0:00:45.3]} 31... Rd8+ {[%clk
0:00:49.7]} 32. Kc3 {[%clk 0:00:42.7]} 32... Rc5 {[%clk 0:00:50.1]} 33. b4
{[%clk 0:00:43.3]} 33... axb4+ {[%clk 0:00:46]} 34. Kxb4 {[%clk 0:00:44.2]}
34... b6 {[%clk 0:00:46]} 35. a5 {[%clk 0:00:43.1]} 35... Rb5+ {[%clk
0:00:41.6]} 36. Kc3 {[%clk 0:00:43.2]} 36... bxa5 {[%clk 0:00:38.6]} 37. Ra1
{[%clk 0:00:37.1]} 37... Ra8 {[%clk 0:00:37.8]} 0-1

[Event "*** SCC Grand Prix: Titled Tuesday Blitz"]
[Site "Chess.com"]
[Date "2020.06.23"]
[Round "4"]
[White "Escanor89"]
[Black "vladislavkovalev"]
[Result "0-1"]
[WhiteElo "2557"]
[BlackElo "2902"]
[TimeControl "180+1"]
[EndTime "10:38:42 PDT"]
[Termination "vladislavkovalev won by resignation"]

1. c4 {[%clk 0:03:00.9]} 1... g6 {[%clk 0:02:59.9]} 2. Nc3 {[%clk 0:03:00.5]}
2... Bg7 {[%clk 0:03:00.6]} 3. d4 {[%clk 0:02:59.6]} 3... d6 {[%clk 0:03:01.2]}
4. e4 {[%clk 0:02:59.6]} 4... e5 {[%clk 0:03:00.3]} 5. dxe5 {[%clk 0:02:49.4]}
5... dxe5 {[%clk 0:03:01.2]} 6. Qxd8+ {[%clk 0:02:49]} 6... Kxd8 {[%clk
0:03:02.1]} 7. Be3 {[%clk 0:02:45.3]} 7... Be6 {[%clk 0:03:00]} 8. O-O-O+ {[%clk
0:02:44.7]} 8... Nd7 {[%clk 0:03:00.6]} 9. g3 {[%clk 0:02:41.2]} 9... c6 {[%clk
0:02:58.3]} 10. f4 {[%clk 0:02:39.7]} 10... Kc7 {[%clk 0:02:53.9]} 11. Bd3
{[%clk 0:02:35.3]} 11... Bh6 {[%clk 0:02:45.3]} 12. Kc2 {[%clk 0:02:28.4]} 12...
Ngf6 {[%clk 0:02:44.2]} 13. h3 {[%clk 0:02:19]} 13... Nh5 {[%clk 0:02:35.2]} 14.
Nge2 {[%clk 0:02:18.6]} 14... exf4 {[%clk 0:02:34]} 15. gxf4 {[%clk 0:02:16.8]}
15... Ne5 {[%clk 0:02:30.5]} 16. b3 {[%clk 0:02:03.5]} 16... Rad8 {[%clk
0:02:24.6]} 17. Bc1 {[%clk 0:01:44.1]} 17... Nxd3 {[%clk 0:02:22.4]} 18. Rxd3
{[%clk 0:01:44.2]} 18... Rxd3 {[%clk 0:02:22.9]} 19. Kxd3 {[%clk 0:01:44.5]}
19... Rd8+ {[%clk 0:02:23.1]} 20. Kc2 {[%clk 0:01:43.4]} 20... Bc8 {[%clk
0:01:48.2]} 21. Be3 {[%clk 0:01:39.3]} 21... b6 {[%clk 0:01:44.8]} 22. h4 {[%clk
0:01:14.5]} 22... Bg4 {[%clk 0:01:36.8]} 23. Rf1 {[%clk 0:01:13.2]} 23... Re8
{[%clk 0:01:35.1]} 24. Kd2 {[%clk 0:01:08]} 24... Bxe2 {[%clk 0:01:33]} 25. Nxe2
{[%clk 0:01:00.8]} 25... Rxe4 {[%clk 0:01:33.5]} 26. Kd3 {[%clk 0:00:54.9]}
26... Re8 {[%clk 0:01:33.1]} 27. Nd4 {[%clk 0:00:51.6]} 27... Rd8 {[%clk
0:01:22.7]} 28. Kc2 {[%clk 0:00:50.2]} 28... Bg7 {[%clk 0:01:14.5]} 29. Nf3
{[%clk 0:00:45.2]} 29... Ng3 {[%clk 0:01:15]} 30. Rg1 {[%clk 0:00:41.9]} 30...
Nf5 {[%clk 0:01:15.4]} 31. Bd2 {[%clk 0:00:40.2]} 31... Bf6 {[%clk 0:01:08.1]}
32. Ng5 {[%clk 0:00:35.7]} 32... Nd4+ {[%clk 0:00:53.9]} 33. Kc1 {[%clk
0:00:07.2]} 33... Ne2+ {[%clk 0:00:53.9]} 0-1

[Event "*** SCC Grand Prix: Titled Tuesday Blitz"]
[Site "Chess.com"]
[Date "2020.06.23"]
[Round "4"]
[White "Iskusnyh"]
[Black "warmoatmeal"]
[Result "0-1"]
[WhiteElo "2444"]
[BlackElo "2323"]
[TimeControl "180+1"]
[EndTime "10:38:45 PDT"]
[Termination "warmoatmeal won on time"]

1. d4 {[%clk 0:03:00.9]} 1... Nf6 {[%clk 0:02:58.5]} 2. c4 {[%clk 0:03:00.4]}
2... e6 {[%clk 0:02:58.6]} 3. g3 {[%clk 0:03:00.4]} 3... d5 {[%clk 0:02:58.3]}
4. Bg2 {[%clk 0:03:00.7]} 4... Bb4+ {[%clk 0:02:59.2]} 5. Nd2 {[%clk 0:02:59.4]}
5... O-O {[%clk 0:02:59.1]} 6. Nf3 {[%clk 0:02:56.2]} 6... b6 {[%clk 0:02:55.5]}
7. O-O {[%clk 0:02:54.2]} 7... Bb7 {[%clk 0:02:55.9]} 8. cxd5 {[%clk 0:02:32.4]}
8... exd5 {[%clk 0:02:56.8]} 9. Ne5 {[%clk 0:02:32.2]} 9... Bd6 {[%clk
0:02:55.6]} 10. Ndc4 {[%clk 0:02:30.4]} 10... Be7 {[%clk 0:02:44.7]} 11. Ne3
{[%clk 0:02:22.8]} 11... Nbd7 {[%clk 0:02:44.2]} 12. b3 {[%clk 0:01:34]} 12...
c5 {[%clk 0:02:41.6]} 13. Bb2 {[%clk 0:01:28.6]} 13... Nxe5 {[%clk 0:02:39.3]}
14. dxe5 {[%clk 0:01:27.5]} 14... Ne4 {[%clk 0:02:40.2]} 15. Nf5 {[%clk
0:01:15]} 15... g6 {[%clk 0:02:37.6]} 16. Nxe7+ {[%clk 0:00:54.5]} 16... Qxe7
{[%clk 0:02:38.5]} 17. Qc1 {[%clk 0:00:51.9]} 17... Ng5 {[%clk 0:02:32.2]} 18.
Rd1 {[%clk 0:00:49.4]} 18... Rad8 {[%clk 0:02:29.2]} 19. Qf4 {[%clk 0:00:44.5]}
19... Ne6 {[%clk 0:02:23.7]} 20. Qa4 {[%clk 0:00:43.8]} 20... a6 {[%clk
0:02:20.8]} 21. e3 {[%clk 0:00:42.6]} 21... b5 {[%clk 0:02:18]} 22. Qg4 {[%clk
0:00:32.2]} 22... h5 {[%clk 0:02:17.1]} 23. Qf3 {[%clk 0:00:29.4]} 23... Ng5
{[%clk 0:02:17.4]} 24. Qf4 {[%clk 0:00:28.7]} 24... Ne6 {[%clk 0:02:17.7]} 25.
Qh6 {[%clk 0:00:27.4]} 25... Rfe8 {[%clk 0:02:16]} 26. Rd2 {[%clk 0:00:27.1]}
26... d4 {[%clk 0:02:16]} 27. exd4 {[%clk 0:00:25.3]} 27... Bxg2 {[%clk
0:02:16.7]} 28. Kxg2 {[%clk 0:00:24.1]} 28... Nxd4 {[%clk 0:02:13.9]} 29. Bxd4
{[%clk 0:00:23.5]} 29... Rxd4 {[%clk 0:02:14.8]} 30. Rxd4 {[%clk 0:00:23.1]}
30... cxd4 {[%clk 0:02:14.8]} 31. Re1 {[%clk 0:00:22.9]} 31... Qb7+ {[%clk
0:02:11.8]} 32. Kg1 {[%clk 0:00:22.7]} 32... Qf3 {[%clk 0:02:11.6]} 33. e6
{[%clk 0:00:21.4]} 33... Qf6 {[%clk 0:02:03.6]} 34. exf7+ {[%clk 0:00:19.9]}
34... Qxf7 {[%clk 0:02:04.5]} 35. Rxe8+ {[%clk 0:00:19.8]} 35... Qxe8 {[%clk
0:02:05.4]} 36. Qd2 {[%clk 0:00:19.7]} 36... Qe4 {[%clk 0:02:04.3]} 37. h4
{[%clk 0:00:18.2]} 37... d3 {[%clk 0:02:04.5]} 38. Qg5 {[%clk 0:00:15.2]} 38...
Qe1+ {[%clk 0:02:01.8]} 39. Kg2 {[%clk 0:00:15.4]} 39... Qe4+ {[%clk 0:02:02]}
40. Kg1 {[%clk 0:00:14.2]} 40... Kf7 {[%clk 0:01:59.6]} 41. a4 {[%clk
0:00:10.2]} 41... bxa4 {[%clk 0:01:57.6]} 42. bxa4 {[%clk 0:00:10.5]} 42... Ke6
{[%clk 0:01:57]} 43. Qd8 {[%clk 0:00:09.9]} 43... Qe1+ {[%clk 0:01:54.4]} 44.
Kg2 {[%clk 0:00:10.1]} 44... d2 {[%clk 0:01:54.5]} 45. Qf8 {[%clk 0:00:09.7]}
45... d1=Q {[%clk 0:01:53.4]} 46. Qe8+ {[%clk 0:00:10]} 46... Kd5 {[%clk
0:01:53]} 47. Qd7+ {[%clk 0:00:10.2]} 47... Kc4 {[%clk 0:01:53.4]} 48. Qc6+
{[%clk 0:00:10.3]} 48... Kb3 {[%clk 0:01:54]} 49. Qb6+ {[%clk 0:00:09.2]} 49...
Qb4 {[%clk 0:01:53.7]} 50. Qe6+ {[%clk 0:00:08.7]} 50... Qc4 {[%clk 0:01:53.6]}
0-1

[Event "*** SCC Grand Prix: Titled Tuesday Blitz"]
[Site "Chess.com"]
[Date "2020.06.23"]
[Round "4"]
[White "Kislov_Oleg"]
[Black "felipelobo"]
[Result "1/2-1/2"]
[WhiteElo "2382"]
[BlackElo "2118"]
[TimeControl "180+1"]
[EndTime "10:38:50 PDT"]
[Termination "Game drawn by repetition"]

1. e4 {[%clk 0:03:00.9]} 1... c5 {[%clk 0:02:59.3]} 2. Nf3 {[%clk 0:03:00.6]}
2... d6 {[%clk 0:02:58.6]} 3. c3 {[%clk 0:03:00.4]} 3... e6 {[%clk 0:02:57.1]}
4. d4 {[%clk 0:03:00.1]} 4... cxd4 {[%clk 0:02:54.5]} 5. cxd4 {[%clk 0:03:00.2]}
5... Nf6 {[%clk 0:02:51.5]} 6. Nc3 {[%clk 0:02:59.2]} 6... d5 {[%clk 0:02:46]}
7. e5 {[%clk 0:02:58.4]} 7... Ne4 {[%clk 0:02:45.5]} 8. Bd3 {[%clk 0:02:39.3]}
8... Nxc3 {[%clk 0:02:37]} 9. bxc3 {[%clk 0:02:38.4]} 9... Be7 {[%clk
0:02:35.3]} 10. h4 {[%clk 0:02:37.2]} 10... Nc6 {[%clk 0:02:25.8]} 11. Bg5
{[%clk 0:02:27.8]} 11... h6 {[%clk 0:02:21.8]} 12. Bxe7 {[%clk 0:02:24.6]} 12...
Qxe7 {[%clk 0:02:22.7]} 13. h5 {[%clk 0:02:15]} 13... Bd7 {[%clk 0:02:20.4]} 14.
Qd2 {[%clk 0:02:14.3]} 14... Na5 {[%clk 0:02:12.6]} 15. O-O {[%clk 0:02:00.9]}
15... Rc8 {[%clk 0:02:08.1]} 16. Rac1 {[%clk 0:01:39.6]} 16... Nc4 {[%clk
0:02:01.1]} 17. Qf4 {[%clk 0:01:38.7]} 17... Bb5 {[%clk 0:01:43.2]} 18. Qg4
{[%clk 0:01:31.7]} 18... O-O {[%clk 0:01:32.7]} 19. Nh4 {[%clk 0:01:18.2]} 19...
Na3 {[%clk 0:01:26.1]} 20. Bxb5 {[%clk 0:01:09.8]} 20... Nxb5 {[%clk 0:01:27]}
21. Qg3 {[%clk 0:00:56.4]} 21... Rxc3 {[%clk 0:01:11]} 22. Rxc3 {[%clk
0:00:49.8]} 22... Nxc3 {[%clk 0:01:10.3]} 23. Qxc3 {[%clk 0:00:46.3]} 23... Qxh4
{[%clk 0:01:09.3]} 24. Rb1 {[%clk 0:00:37.2]} 24... b6 {[%clk 0:01:05.3]} 25. a4
{[%clk 0:00:27.5]} 25... Qxh5 {[%clk 0:01:00.6]} 26. a5 {[%clk 0:00:27.9]} 26...
Qf5 {[%clk 0:00:51.4]} 27. Rb2 {[%clk 0:00:26.7]} 27... Qg4 {[%clk 0:00:36.8]}
28. axb6 {[%clk 0:00:24.9]} 28... axb6 {[%clk 0:00:36.3]} 29. Rxb6 {[%clk
0:00:24.2]} 29... Qd1+ {[%clk 0:00:35.9]} 30. Kh2 {[%clk 0:00:24.5]} 30... Qh5+
{[%clk 0:00:35.6]} 31. Kg1 {[%clk 0:00:23.5]} 31... Qd1+ {[%clk 0:00:35]} 32.
Kh2 {[%clk 0:00:22.9]} 32... Qh5+ {[%clk 0:00:34.8]} 33. Kg1 {[%clk 0:00:20.6]}
33... Qd1+ {[%clk 0:00:34.5]} 1/2-1/2

[Event "*** SCC Grand Prix: Titled Tuesday Blitz"]
[Site "Chess.com"]
[Date "2020.06.23"]
[Round "4"]
[White "Evgeny_Ermakov1965"]
[Black "Superfelix"]
[Result "1-0"]
[WhiteElo "2660"]
[BlackElo "2468"]
[TimeControl "180+1"]
[EndTime "10:38:51 PDT"]
[Termination "Evgeny_Ermakov1965 won by resignation"]

1. d4 {[%clk 0:03:00.9]} 1... g6 {[%clk 0:02:59.3]} 2. c4 {[%clk 0:03:00]} 2...
Bg7 {[%clk 0:02:59.2]} 3. Nc3 {[%clk 0:03:00.2]} 3... d6 {[%clk 0:02:59.5]} 4.
e4 {[%clk 0:02:59.6]} 4... Nc6 {[%clk 0:02:59.6]} 5. Nf3 {[%clk 0:02:59.3]} 5...
e5 {[%clk 0:02:58.3]} 6. d5 {[%clk 0:02:59.6]} 6... Nce7 {[%clk 0:02:58.3]} 7.
Be3 {[%clk 0:02:56.4]} 7... f5 {[%clk 0:02:57.9]} 8. Bd3 {[%clk 0:02:56.3]} 8...
Nf6 {[%clk 0:02:57.9]} 9. Qc2 {[%clk 0:02:53.9]} 9... a5 {[%clk 0:02:53.9]} 10.
O-O {[%clk 0:02:51.3]} 10... O-O {[%clk 0:02:51.6]} 11. c5 {[%clk 0:02:48.1]}
11... Ng4 {[%clk 0:02:48.3]} 12. Bg5 {[%clk 0:02:46.1]} 12... h6 {[%clk
0:02:42.9]} 13. Bxe7 {[%clk 0:02:44]} 13... Qxe7 {[%clk 0:02:42.2]} 14. cxd6
{[%clk 0:02:44.9]} 14... cxd6 {[%clk 0:02:41.6]} 15. Nb5 {[%clk 0:02:42.1]}
15... Nf6 {[%clk 0:02:21.2]} 16. Qc7 {[%clk 0:02:38.3]} 16... Qxc7 {[%clk
0:02:09.3]} 17. Nxc7 {[%clk 0:02:39.2]} 17... fxe4 {[%clk 0:02:05.8]} 18. Bxe4
{[%clk 0:02:36.4]} 18... Nxe4 {[%clk 0:01:58.4]} 19. Nxa8 {[%clk 0:02:36.5]}
19... Bg4 {[%clk 0:01:57.7]} 20. Nb6 {[%clk 0:02:31.7]} 20... Bxf3 {[%clk
0:01:52.5]} 21. gxf3 {[%clk 0:02:32.6]} 21... Nd2 {[%clk 0:01:52.1]} 22. Rfc1
{[%clk 0:02:32.1]} 22... Nxf3+ {[%clk 0:01:50]} 23. Kg2 {[%clk 0:02:32.3]} 23...
e4 {[%clk 0:01:50.1]} 24. Rc8 {[%clk 0:02:29.5]} 24... Bxb2 {[%clk 0:01:42.2]}
25. Rb1 {[%clk 0:02:26.4]} 25... Bd4 {[%clk 0:01:38.2]} 26. Rxf8+ {[%clk
0:02:26]} 26... Kxf8 {[%clk 0:01:38.6]} 27. Nc8 {[%clk 0:02:26.9]} 27... Bc5
{[%clk 0:01:30.2]} 28. Rxb7 {[%clk 0:02:24.7]} 28... Ne1+ {[%clk 0:01:26.1]} 29.
Kf1 {[%clk 0:02:24.1]} 29... Nd3 {[%clk 0:01:26.1]} 30. Na7 {[%clk 0:02:18.2]}
30... Nxf2 {[%clk 0:01:23.7]} 31. Nc6 {[%clk 0:02:18.1]} 31... e3 {[%clk
0:01:15]} 32. Nxa5 {[%clk 0:02:15.7]} 32... Ne4 {[%clk 0:00:40.9]} 33. Nb3
{[%clk 0:02:13.1]} 33... Ba3 {[%clk 0:00:30.5]} 34. Ra7 {[%clk 0:02:04.8]} 34...
Bb2 {[%clk 0:00:27.9]} 35. a4 {[%clk 0:02:04.5]} 35... Bf6 {[%clk 0:00:21.8]}
36. Ke2 {[%clk 0:02:01.2]} 36... Bg5 {[%clk 0:00:19.4]} 37. Rc7 {[%clk
0:01:58.7]} 37... Nf6 {[%clk 0:00:15.6]} 38. a5 {[%clk 0:01:54.2]} 38... Nxd5
{[%clk 0:00:15.7]} 39. Rc6 {[%clk 0:01:48.9]} 39... Nb4 {[%clk 0:00:12.1]} 40.
Rxd6 {[%clk 0:01:49]} 40... Ke7 {[%clk 0:00:11.9]} 41. a6 {[%clk 0:01:44.4]}
41... Kxd6 {[%clk 0:00:09.5]} 42. a7 {[%clk 0:01:44.1]} 42... Nd5 {[%clk
0:00:10.4]} 43. a8=Q {[%clk 0:01:42.2]} 43... Nc3+ {[%clk 0:00:10.6]} 44. Kd3
{[%clk 0:01:39.6]} 44... e2 {[%clk 0:00:10.9]} 45. Qa1 {[%clk 0:01:32]} 45...
Bh4 {[%clk 0:00:10]} 46. Qa3+ {[%clk 0:01:28.3]} 46... Kc7 {[%clk 0:00:08.6]}
47. Qc5+ {[%clk 0:01:24.9]} 47... Kd8 {[%clk 0:00:08.4]} 48. Qd4+ {[%clk
0:01:24.4]} 48... Ke7 {[%clk 0:00:08.9]} 1-0

[Event "*** SCC Grand Prix: Titled Tuesday Blitz"]
[Site "Chess.com"]
[Date "2020.06.23"]
[Round "4"]
[White "Spartakus1975"]
[Black "ElviraBerend"]
[Result "1-0"]
[WhiteElo "2680"]
[BlackElo "2483"]
[TimeControl "180+1"]
[EndTime "10:38:53 PDT"]
[Termination "Spartakus1975 won by resignation"]

1. e4 {[%clk 0:03:00.9]} 1... e5 {[%clk 0:02:59.5]} 2. Nc3 {[%clk 0:02:57.1]}
2... Nc6 {[%clk 0:02:59.1]} 3. Bc4 {[%clk 0:02:56.3]} 3... Bc5 {[%clk
0:02:58.9]} 4. d3 {[%clk 0:02:56.3]} 4... d6 {[%clk 0:02:59]} 5. f4 {[%clk
0:02:56]} 5... Nf6 {[%clk 0:02:59]} 6. Nf3 {[%clk 0:02:52.9]} 6... Bg4 {[%clk
0:02:58.4]} 7. Na4 {[%clk 0:02:50.6]} 7... a6 {[%clk 0:02:57.5]} 8. Nxc5 {[%clk
0:02:50.1]} 8... dxc5 {[%clk 0:02:56.5]} 9. h3 {[%clk 0:02:50.2]} 9... Bxf3
{[%clk 0:02:55.2]} 10. Qxf3 {[%clk 0:02:50.2]} 10... Nd4 {[%clk 0:02:54.9]} 11.
Qf2 {[%clk 0:02:50.3]} 11... exf4 {[%clk 0:02:43.6]} 12. Bxf4 {[%clk 0:02:43.8]}
12... b5 {[%clk 0:02:43.1]} 13. Bb3 {[%clk 0:02:39.8]} 13... c4 {[%clk
0:02:42.6]} 14. Be5 {[%clk 0:02:24.5]} 14... Nxb3 {[%clk 0:02:22.2]} 15. axb3
{[%clk 0:02:21.4]} 15... cxd3 {[%clk 0:02:22.2]} 16. Bxf6 {[%clk 0:02:13.6]}
16... d2+ {[%clk 0:02:13.8]} 17. Ke2 {[%clk 0:02:08]} 17... gxf6 {[%clk
0:02:12.1]} 18. Rhd1 {[%clk 0:01:58.4]} 18... Qe7 {[%clk 0:02:11.4]} 19. Rxd2
{[%clk 0:01:53]} 19... Qxe4+ {[%clk 0:02:09.8]} 20. Kf1 {[%clk 0:01:52.9]} 20...
O-O {[%clk 0:02:09.6]} 21. Qxf6 {[%clk 0:01:48.9]} 21... Qg6 {[%clk 0:02:02.2]}
22. Rf2 {[%clk 0:01:36.6]} 22... Rfe8 {[%clk 0:01:46.2]} 23. Kg1 {[%clk
0:01:35.9]} 23... Re6 {[%clk 0:01:43.1]} 24. Qf4 {[%clk 0:01:31.7]} 24... Rae8
{[%clk 0:01:42.1]} 25. Raf1 {[%clk 0:01:28.2]} 25... Re2 {[%clk 0:01:34.3]} 26.
Qxc7 {[%clk 0:01:23.9]} 26... Rxf2 {[%clk 0:01:28.1]} 27. Rxf2 {[%clk
0:01:23.2]} 27... Re6 {[%clk 0:01:25.5]} 28. Rf3 {[%clk 0:01:13.5]} 28... Qh5
{[%clk 0:01:09.5]} 29. Qd8+ {[%clk 0:01:02.9]} 29... Kg7 {[%clk 0:01:08.4]} 30.
Qd4+ {[%clk 0:01:02.4]} 30... Kg8 {[%clk 0:01:07.3]} 31. c4 {[%clk 0:00:54.5]}
31... Rg6 {[%clk 0:00:56.8]} 32. Qf4 {[%clk 0:00:54]} 32... Qc5+ {[%clk
0:00:54.8]} 33. Kh2 {[%clk 0:00:52.8]} 33... Qd6 {[%clk 0:00:53.4]} 34. Qxd6
{[%clk 0:00:52.3]} 34... Rxd6 {[%clk 0:00:52.7]} 35. c5 {[%clk 0:00:52.6]} 35...
Rc6 {[%clk 0:00:49.3]} 36. b4 {[%clk 0:00:51.2]} 36... Kf8 {[%clk 0:00:46.7]}
37. Re3 {[%clk 0:00:46.9]} 37... Rg6 {[%clk 0:00:45.7]} 38. g4 {[%clk
0:00:45.3]} 38... Rg5 {[%clk 0:00:44.8]} 39. Ra3 {[%clk 0:00:39.1]} 39... Rg6
{[%clk 0:00:43.9]} 40. Kg3 {[%clk 0:00:39.1]} 40... Re6 {[%clk 0:00:43.9]} 41.
Kf4 {[%clk 0:00:38.1]} 41... Ke7 {[%clk 0:00:43.9]} 42. Re3 {[%clk 0:00:38]}
42... h6 {[%clk 0:00:43.3]} 43. Rxe6+ {[%clk 0:00:37]} 43... Kxe6 {[%clk
0:00:43.6]} 44. Ke4 {[%clk 0:00:35.5]} 1-0

[Event "*** SCC Grand Prix: Titled Tuesday Blitz"]
[Site "Chess.com"]
[Date "2020.06.23"]
[Round "4"]
[White "Dr-Bassem"]
[Black "Mikhail_Golubev"]
[Result "1-0"]
[WhiteElo "2798"]
[BlackElo "2599"]
[TimeControl "180+1"]
[EndTime "10:38:54 PDT"]
[Termination "Dr-Bassem won by resignation"]

1. e4 {[%clk 0:03:00.9]} 1... c5 {[%clk 0:02:59.9]} 2. Nf3 {[%clk 0:03:01.5]}
2... d6 {[%clk 0:03:00]} 3. g3 {[%clk 0:03:02.1]} 3... Nf6 {[%clk 0:02:57.1]} 4.
d3 {[%clk 0:03:00]} 4... g6 {[%clk 0:02:48.5]} 5. Bg2 {[%clk 0:03:00.4]} 5...
Bg7 {[%clk 0:02:48.6]} 6. O-O {[%clk 0:03:01.1]} 6... O-O {[%clk 0:02:48.8]} 7.
c3 {[%clk 0:03:01.5]} 7... Nc6 {[%clk 0:02:47.6]} 8. Re1 {[%clk 0:03:01.8]} 8...
e5 {[%clk 0:02:47.3]} 9. a3 {[%clk 0:03:01.4]} 9... d5 {[%clk 0:02:41.8]} 10.
exd5 {[%clk 0:02:54.2]} 10... Nxd5 {[%clk 0:02:41.1]} 11. Nbd2 {[%clk
0:02:47.3]} 11... Re8 {[%clk 0:02:39.7]} 12. Qb3 {[%clk 0:02:44.9]} 12... Be6
{[%clk 0:02:25.9]} 13. Qxb7 {[%clk 0:02:21.6]} 13... Na5 {[%clk 0:01:56.7]} 14.
Qb5 {[%clk 0:02:06.2]} 14... Bd7 {[%clk 0:01:00.2]} 15. Qxc5 {[%clk 0:02:00.7]}
15... Be6 {[%clk 0:00:50.2]} 16. Ng5 {[%clk 0:01:38.1]} 16... Rc8 {[%clk
0:00:39.9]} 17. Nxe6 {[%clk 0:01:32.7]} 17... fxe6 {[%clk 0:00:39.1]} 18. Qb5
{[%clk 0:01:31.5]} 18... Rf8 {[%clk 0:00:39]} 19. Ne4 {[%clk 0:01:22.5]} 19...
Rb8 {[%clk 0:00:39.1]} 20. Qa6 {[%clk 0:01:13.2]} 20... Nb3 {[%clk 0:00:39.1]}
21. Qxe6+ {[%clk 0:01:11.3]} 21... Kh8 {[%clk 0:00:38.3]} 22. Bg5 {[%clk
0:01:11.6]} 22... Nc7 {[%clk 0:00:34.1]} 23. Qc4 {[%clk 0:00:45.2]} 23... Qd7
{[%clk 0:00:33.5]} 24. Rad1 {[%clk 0:00:43.7]} 24... Na5 {[%clk 0:00:30]} 25.
Qc5 {[%clk 0:00:31]} 25... Nb3 {[%clk 0:00:27.4]} 26. Qe7 {[%clk 0:00:26.4]}
26... Qc8 {[%clk 0:00:23.5]} 27. Nd6 {[%clk 0:00:23.2]} 27... Qg4 {[%clk
0:00:19.3]} 28. Qxc7 {[%clk 0:00:21.9]} 28... Qxg5 {[%clk 0:00:19]} 29. Nf7+
{[%clk 0:00:22]} 29... Rxf7 {[%clk 0:00:18.3]} 30. Qxb8+ {[%clk 0:00:21.9]} 1-0

[Event "*** SCC Grand Prix: Titled Tuesday Blitz"]
[Site "Chess.com"]
[Date "2020.06.23"]
[Round "4"]
[White "Shahinyan_ChessMood"]
[Black "TokChess"]
[Result "1-0"]
[WhiteElo "2613"]
[BlackElo "2376"]
[TimeControl "180+1"]
[EndTime "10:38:56 PDT"]
[Termination "Shahinyan_ChessMood won by resignation"]

1. e4 {[%clk 0:02:59.9]} 1... c5 {[%clk 0:02:59.2]} 2. Nc3 {[%clk 0:03:00.4]}
2... e6 {[%clk 0:02:59.1]} 3. g3 {[%clk 0:03:01.3]} 3... a6 {[%clk 0:02:58.2]}
4. Bg2 {[%clk 0:03:01]} 4... b5 {[%clk 0:02:58.3]} 5. d3 {[%clk 0:03:01.6]} 5...
Bb7 {[%clk 0:02:58.5]} 6. Nh3 {[%clk 0:03:02.2]} 6... d6 {[%clk 0:02:56.8]} 7.
O-O {[%clk 0:03:01.3]} 7... Nd7 {[%clk 0:02:57.3]} 8. f4 {[%clk 0:03:00]} 8...
Ngf6 {[%clk 0:02:53.6]} 9. f5 {[%clk 0:02:34.6]} 9... e5 {[%clk 0:02:38.4]} 10.
Nf2 {[%clk 0:02:33.2]} 10... b4 {[%clk 0:02:33.6]} 11. Nd5 {[%clk 0:02:24.4]}
11... Nxd5 {[%clk 0:02:27.4]} 12. exd5 {[%clk 0:02:25.3]} 12... Nf6 {[%clk
0:02:27.5]} 13. Bg5 {[%clk 0:02:22]} 13... Be7 {[%clk 0:02:25.2]} 14. Bxf6
{[%clk 0:02:22.5]} 14... Bxf6 {[%clk 0:02:18.7]} 15. h4 {[%clk 0:02:22.6]} 15...
g5 {[%clk 0:01:37.7]} 16. Ne4 {[%clk 0:01:48.5]} 16... gxh4 {[%clk 0:01:34.8]}
17. Qh5 {[%clk 0:01:49.1]} 17... h6 {[%clk 0:01:13.6]} 18. gxh4 {[%clk
0:01:38.6]} 18... Qe7 {[%clk 0:01:10.8]} 19. c4 {[%clk 0:01:28]} 19... O-O-O
{[%clk 0:00:59.4]} 20. Kh2 {[%clk 0:01:27.4]} 20... Rdg8 {[%clk 0:00:59.3]} 21.
Bh3 {[%clk 0:01:22.7]} 21... Kc7 {[%clk 0:00:58]} 22. Rg1 {[%clk 0:00:58.4]}
22... Bxh4 {[%clk 0:00:45.8]} 23. Rxg8 {[%clk 0:00:53.3]} 23... Rxg8 {[%clk
0:00:45.9]} 24. f6 {[%clk 0:00:54.2]} 24... Bxf6 {[%clk 0:00:45.3]} 25. Rf1
{[%clk 0:00:55.1]} 25... Rg6 {[%clk 0:00:41.9]} 26. Bf5 {[%clk 0:00:55.6]} 26...
Rg8 {[%clk 0:00:27]} 27. Bh7 {[%clk 0:00:54.3]} 27... Bg5 {[%clk 0:00:17]} 28.
Bxg8 {[%clk 0:00:50.2]} 28... Bf4+ {[%clk 0:00:16.8]} 29. Rxf4 {[%clk
0:00:48.5]} 29... exf4 {[%clk 0:00:16.7]} 30. Qxf7 {[%clk 0:00:47.7]} 30... Qxf7
{[%clk 0:00:16.4]} 31. Bxf7 {[%clk 0:00:48]} 31... Bc8 {[%clk 0:00:16.3]} 32.
Be6 {[%clk 0:00:45.8]} 32... Bb7 {[%clk 0:00:12.1]} 33. Kh3 {[%clk 0:00:44]}
33... a5 {[%clk 0:00:11.7]} 34. Kg4 {[%clk 0:00:40.8]} 34... a4 {[%clk
0:00:11.6]} 35. a3 {[%clk 0:00:40.4]} 1-0